{"text_format":"1","workbook":"xlsx","n_sheets":6,"sheets":["Инструкция","Уровни","Задание","Данные","Отчеты","Результаты"],"not_rendered":{"charts":0,"images":0,"macros":1,"external_links":0,"defined_names":1,"comments":1,"pivot_tables":0},"unopened":[],"bounds":{"document_bytes":16777216,"sheet_cells":100000,"rows_first":2000,"rows_last":500,"rows_between":2000,"halvings":0,"cell_chars":16384,"cell_head_chars":4096},"cells_cut":0,"cells_raw":0,"read":"whole","date_system":"1900"}

{"sheet":"Инструкция","index":0,"n_rows":91,"n_cols":1,"rows_kept":91,"cut":false,"hidden":false,"merged":[]}
["Учебные материалы Шарапова М.П."]
["Задания с автоматизированной проверкой ответов"]
["Умножение десятичных дробей"]
["© Шарапов Михаил Петрович, 2022"]
["Демонстрационная, оценочная версия программы."]
["E-mail: autocad1012@yahoo.com"]
["Сайт: http://sharapovmp.ru"]
[]
["Электронный дидактический материал"]
["Инструкция учащегося"]
[]
["Введение"]
[]
["Программа предназначена для автоматизированной проверки умения учащегося выполнять умножение одного числа на другое для следующих чисел:"]
["1.     Неотрицательные целые числа в пределах от 0 до 99, включительно. *)"]
["2.     Положительные десятичные дроби в пределах от 0,01 до 9,9, включительно, с количеством ненулевых цифр не более двух и количеством дробных десятичных разрядов (после запятой) не более трех. *)"]
["Проверка заключается в том, что программа по команде учащегося выводит в ячейки электронной таблицы на экране дисплея два числа, которые учащийся должен самостоятельно, без использования калькулятора перемножить и полученный результат ввести для проверки в определенную ячейку электронной таблицы."]
["Каждая пара чисел, которые надо перемножить учащемуся, является одним заданием."]
["Каждое задание оценивается отдельно."]
["После ввода результата программа автоматически выполнит следующие действия:"]
["1.     Проверит введенный результат,"]
["2.     Выставит оценку за выполнение данного задания,"]
["3.     Выведет оценку и комментарий к ней на экран дисплея,"]
["4.     Добавит результат выполнения данного задания вместе с дополнительными данными в таблицу результатов."]
["Оценка за каждое задание выставляется в баллах:"]
["1.     Правильно выполненное задание: 5 баллов."]
["2.     Неправильно выполненное задание: 2 балла."]
["3.     Пропущенное задание: 0 баллов."]
["Пропущенное задание означает, что учащийся, не введя результата, запросил следующее задание."]
["Примечание: В демонстрационной, оценочной версии программы количество разных сомножителей ограничено, см. ниже."]
["Сложность задания определяется уровнем от 1 до 64, включительно."]
[]
[]
["Действия учащегося"]
[]
["Решение заданий"]
[]
["Перейдите на лист «Задание»."]
["Нажмите кнопку «Задание»."]
["В ячейках A9 и  C9 появятся числа, которые надо перемножить."]
["Ячейка F9 будет выделена."]
["Самостоятельно, без использования калькулятора найдите произведение этих чисел."]
["Введите результат в выделенную ячейку F9."]
["Выбирать ячейку дополнительно не надо – она уже выбрана."]
[]
[" Просто наберите вычисленное число на клавиатуре, и результат будет введен в нужную ячейку."]
["Введя результат, нажмите на клавишу Enter на клавиатуре."]
["В ячейке G9 появится оценка за данное задание."]
["В ячейке A13 появится комментарий."]
["Ваш результат будет добавлен в таблицу результатов."]
[]
[]
["  Для решения следующего задания снова нажмите кнопку «Задание»."]
[]
["В любой момент после ввода результата вы можете переходить на другие листы и выполнять другие действия."]
[]
[]
["Выбор уровня"]
[]
["Перейдите на лист «Уровни»."]
["Выделите ячейку с номером уровня в одной из закрашенных областей, наведя на эту ячейку курсор мыши и нажав левую кнопку мыши."]
[]
["До тех пор, пока вы не выберете другой уровень, выбранный уровень будет сохранен, даже при закрывании книги, только с сохранением."]
[]
[]
["Для выбора другого уровня, выделите другую ячейку с другим номером уровня в одной из закрашенных областей, наведя на эту ячейку курсор мыши и нажав левую кнопку мыши."]
[]
[]
["Результаты"]
[]
["Чтобы просмотреть результаты, перейдите на лист «Результаты»."]
["Результаты можно удалить, если нажать кнопку «Удалить»."]
[]
["Отчеты"]
[]
["Для того чтобы получить обобщенную оценку умения учащегося, можно сформировать отчет."]
["Перейдите на лист «Отчеты»."]
["Нажмите кнопку «Отчет»."]
["Средний балл будет вычислен для каждого уровня и для каждой даты."]
["Оценка будет вычислена, как округленный средний балл. "]
[]
[]
["Демонстрационная, оценочная версия программы"]
[]
["Эта программа является демонстрационной, оценочной версией программы."]
["Эта программа полностью идентична основной программе, за исключением того, что количество разных сомножителей в заданиях ограничено пятью для каждого уровня сложности."]
["В основной версии этой программы количество разных сомножителей в заданиях равно полному количеству для каждого уровня сложности."]
["Эта программа предназначена для демонстрации функциональных, учебно-методических возможностей основной программы."]
["Кроме того, эта программа предназначена для оценки корректности работы основной программы на вашем компьютере, для установленной версии операционной системы и версии Excel."]
["Если вы решите, что основная версия этой программы вам нужна, купите ее."]
["По вопросу покупки основной версии этой программы отправьте запрос по электронной почте на адрес: autocad1012@yahoo.com."]

{"sheet":"Уровни","index":1,"n_rows":47,"n_cols":36,"rows_kept":47,"cut":false,"hidden":false,"merged":[]}
["Выберите уровень сложности",null,null,null,null,null,null,null,null,null,null,null,null,null,null,null,null,null,null,null,null,"Сезон",1,null,"Таблица областей"]
[null,null,null,null,"Группа 1",null,null,null,null,null,null,null,null,null,null,null,null,null,null,null,null,"Уровень",7,null,"Номер 1-й строки","Номер последней строки"]
["×",null,null,null,"2-й сомножитель",null,null,null,null,null,null,null,null,null,null,null,null,null,null,null,null,"Номер столбца 1-го сомножителя",3,null,7,8]
["1-й сомножитель",null,null,null,"0; 10; 20…40","0; 1; 2…4","0; 0,1; 0,2…0,4","0; 0,01; 0,02…0,04",null,null,null,null,null,null,null,null,null,null,null,null,null,"Номер столбца 2-го сомножителя",4,null,"Номер области","Номер сезона","Номер базовой строки","Смещение","Номер строки, расположенной сразу над самой верхней строкой области уровней","Номер строки, расположенной сразу под самой нижней строкой области уровней","Номер столбца, расположенного сразу слева перед самым левым столбцом области уровней","Номер столбца, расположенного сразу справа после самого правого столбца области уровней","Признак выбора данного сезона","Заголовок отчета","Номер отчета","Дата"]
[null,null,null,"Описание числа","Любое из чисел, равное числу целых десятков, в пределах от 0, включительно до 40, включительно.","Любое из целых чисел в пределах от 0, включительно до 4, включительно.","Любое из чисел: 0; 0,1; 0,2; 0,3; 0,4.","Любое из чисел: 0; 0,01; 0,02; 0,03; 0,04."]
[null,null,null,"Пример",30,3,0.2,0.04]
[null,"Описание числа","Пример","Номер столбца данных",3,1,2,4,null,null,null,null,null,null,null,null,null,null,null,null,null,null,null,null,1,1,2,13,7,12,4,9]
["0; 10; 20…40","Любое из чисел, равное числу целых десятков, в пределах от 0, включительно до 40, включительно.",40,3,4,3,6,7,null,null,null,null,null,null,null,null,null,null,null,null,null,null,null,null,2,2,26,17,31,40,4,13]
["0; 1; 2…4","Любое из целых чисел в пределах от 0, включительно до 4, включительно.",2,1,2,1,10,11]
["0; 0,1; 0,2…0,4","Любое из чисел: 0; 0,1; 0,2; 0,3; 0,4.",0.3,2,5,9,13,15]
["0; 0,01; 0,02…0,04","Любое из чисел: 0; 0,01; 0,02; 0,03; 0,04.",0.03,4,8,12,14,16]
[]
[]
[null,null,"Выбран уровень:"]
[null,null,"Группа",1]
[null,null,"Уровень",7]
[null,null,"1-й сомножитель",40,"Любое из чисел, равное числу целых десятков, в пределах от 0, включительно до 40, включительно."]
[null,null,"2-й сомножитель",0.04,"Любое из чисел: 0; 0,01; 0,02; 0,03; 0,04."]
[null,null,"Пример задания",{"$f":"IF(OR(D17=\"\",D18=\"\"),\"\",CONCATENATE(D17,A3,D18))","v":"40×0,04"}]
[]
[]
[]
[]
[]
[]
[null,null,null,null,"Группа 2"]
["×",null,null,null,"2-й сомножитель"]
["1-й сомножитель",null,null,null,"0; 10; 20…40","0; 1; 2…4","0; 0,1; 0,2…0,4","0; 0,01; 0,02…0,04","10; 11; 12…14","1,1; 1,2…1,4","0,1; 0,11; 0,12…0,14","0,01; 0,011; 0,012…0,014"]
[null,null,null,"Описание числа","Любое из чисел, равное числу целых десятков, в пределах от 0, включительно до 40, включительно.","Любое из целых чисел в пределах от 0, включительно до 4, включительно.","Любое из чисел: 0; 0,1; 0,2; 0,3; 0,4.","Любое из чисел: 0; 0,01; 0,02; 0,03; 0,04.","Любое из чисел: 10, 11, 12, 13, 14.","Любое из чисел: 1; 1,1; 1,2; 1,3; 1,4.","Любое из чисел: 0,1; 0,11; 0,12; 0,13; 0,14.","Любое из чисел: 0,01; 0,011; 0,012; 0,013; 0,014."]
[null,null,null,"Пример",30,2,0.4,0.04,11,1.2,0.13,1.2E-2]
[null,"Описание числа","Пример","Номер столбца данных",3,1,2,4,5,6,7,8]
["0; 10; 20…40","Любое из чисел, равное числу целых десятков, в пределах от 0, включительно до 40, включительно.",40,3,4,3,6,7,18,20,24,30]
["0; 1; 2…4","Любое из целых чисел в пределах от 0, включительно до 4, включительно.",4,1,2,1,10,11,22,26,32,38]
["0; 0,1; 0,2…0,4","Любое из чисел: 0; 0,1; 0,2; 0,3; 0,4.",0.3,2,5,9,13,15,28,34,40,44]
["0; 0,01; 0,02…0,04","Любое из чисел: 0; 0,01; 0,02; 0,03; 0,04.",0.03,4,8,12,14,16,36,42,46,48]
["10; 11; 12…14","Любое из чисел: 10, 11, 12, 13, 14",10,5,17,19,23,29,49,50,52,55]
["1; 1,1; 1,2…1,4","Любое из чисел: 1; 1,1; 1,2; 1,3; 1,4",1.2,6,21,25,31,37,51,53,56,59]
["0,1; 0,11; 0,12…0,14","Любое из чисел: 0,1; 0,11; 0,12; 0,13; 0,14",0.11,7,27,33,39,43,54,57,60,62]
["0,01; 0,011; 0,012…0,014","Любое из чисел: 0,01; 0,011; 0,012; 0,013; 0,014",1.2999999999999999E-2,8,35,41,45,47,58,61,63,64]
[]
[]
[null,null,"Выбран уровень:"]
[null,null,"Группа"]
[null,null,"Уровень"]
[null,null,"1-й сомножитель"]
[null,null,"2-й сомножитель"]
[null,null,"Пример задания",{"$f":"IF(OR(D45=\"\",D46=\"\"),\"\",CONCATENATE(D45,A27,D46))","v":""}]

{"sheet":"Задание","index":2,"n_rows":21,"n_cols":14,"rows_kept":21,"cut":false,"hidden":false,"merged":[[12,0,13,6]]}
["Учебные материалы Шарапова М.П."]
["Задания с автоматизированной проверкой ответов"]
["Умножение десятичных дробей"]
["© Шарапов Михаил Петрович, 2022"]
[]
["Вычислите самостоятельно,  без калькулятора"]
[]
["1-й сомножитель","Знак умножения","2-й сомножитель","Знак равенства","Правильный ответ","Ваш ответ","Баллы","Всего примеров","Правильно решено","Неправильно решено","Пропущено",null,"Группа","Уровень"]
[1,"×",4,"=",{"$f":"A9*C9","v":4},4,{"$f":"IF(F9=\"\",0,IF(E9=F9,5,2))","v":5},8,8,0,{"$f":"H9-I9-J9","v":0},null,{"$f":"Уровни!W1","v":1},{"$f":"Уровни!W2","v":7}]
[]
[null,null,null,null,null,null,null,"Дата",{"$f":"TODAY()","v":"2022-08-02"}]
["Результат",null,null,null,null,null,null,"Начало","Конец","Продолжительность"]
[{"$f":"IF(F9=\"\",\"Ответ  не введен.\",IF(E9=F9,\"Правильно!\",CONCATENATE(\"Не совсем правильно. Правильный ответ: \",A9,B9,C9,D9,E9)))","v":"Правильно!"},null,null,null,null,null,null,"19:51:08","19:51:17",{"$f":"I13-H13","v":"00:00:09"}]
[]
[]
[]
[]
[]
[]
[]
[null,null,null,null,null,{"$f":"TEXT(F9,\"#,#\")","v":"4,"}]

{"sheet":"Данные","index":3,"n_rows":96,"n_cols":34,"rows_kept":96,"cut":false,"hidden":false,"merged":[]}
[]
["Следующие на очереди"]
["1-й множитель",null,"2-й множитель"]
["Строка","Столбец","Строка","Столбец",null,null,"Случайное число 1","Случайное число 2","Количество строк 1 множества","Количество строк 2 множества","Начальная строка 1","Начальная строка 2","Случайная строка 1","Случайная строка 1"]
[{"$f":"M5","v":8},{"$f":"IF(Уровни!W3=\"\",1,Уровни!W3)","v":3},{"$f":"N5","v":11},{"$f":"IF(Уровни!W4=\"\",1,Уровни!W4)","v":4},null,null,0.37353616952896118,0.96195316314697266,{"$f":"IF(B5>4,5,5)","v":5},{"$f":"IF(D5>4,5,5)","v":5},7,7,{"$f":"INT(G5*I5+K5)","v":8},{"$f":"INT(H5*J5+L5)","v":11}]
["Множества сомножителей"]
[0,{"$f":"ROUND(AB7,1)","v":0},0,{"$f":"ROUND(AD7,2)","v":0},10,{"$f":"ROUND(AF7,1)","v":1},{"$f":"ROUND(AG7,2)","v":0.1},{"$f":"ROUND(AH7,3)","v":0.01},null,null,null,null,null,null,null,null,null,null,null,null,null,null,null,null,null,null,0,0,0,0,10,1,0.1,0.01]
[1,{"$f":"ROUND(AB8,1)","v":0.1},10,{"$f":"ROUND(AD8,2)","v":0.01},11,{"$f":"ROUND(AF8,1)","v":1.1000000000000001},{"$f":"ROUND(AG8,2)","v":0.11},{"$f":"ROUND(AH8,3)","v":1.0999999999999999E-2},null,null,null,null,null,null,null,null,null,null,null,null,null,null,null,null,null,null,1,0.1,10,0.01,11,1.1000000000000001,0.11,1.0999999999999999E-2]
[2,0.2,20,0.02,12,1.2,0.12,1.2E-2,null,null,null,null,null,null,null,null,null,null,null,null,null,null,null,null,null,null,2,0.2,20,0.02,12,1.2,0.12,1.2E-2]
[3,0.3,30,0.03,13,1.3,0.13,1.2999999999999999E-2,null,null,null,null,null,null,null,null,null,null,null,null,null,null,null,null,null,null,3,0.3,30,0.03,13,1.3,0.13,1.2999999999999999E-2]
[4,0.4,40,0.04,14,1.4,0.14000000000000001,1.4E-2,null,null,null,null,null,null,null,null,null,null,null,null,null,null,null,null,null,null,4,0.4,40,0.04,14,1.4,0.14000000000000001,1.4E-2]
[5,0.5,50,0.05,15,1.5,0.15,1.4999999999999999E-2,null,null,null,null,null,null,null,null,null,null,null,null,null,null,null,null,null,null,5,0.5,50,0.05,15,1.5,0.15,1.4999999999999999E-2]
[6,0.6,60,0.06,16,1.6,0.16,1.6E-2,null,null,null,null,null,null,null,null,null,null,null,null,null,null,null,null,null,null,6,0.6,60,0.06,16,1.6,0.16,1.6E-2]
[7,0.7,70,7.0000000000000007E-2,17,1.7,0.17,1.7000000000000001E-2,null,null,null,null,null,null,null,null,null,null,null,null,null,null,null,null,null,null,7,0.7,70,7.0000000000000007E-2,17,1.7,0.17,1.7000000000000001E-2]
[8,0.8,80,0.08,18,1.8,0.18,1.7999999999999999E-2,null,null,null,null,null,null,null,null,null,null,null,null,null,null,null,null,null,null,8,0.8,80,0.08,18,1.8,0.18,1.7999999999999999E-2]
[9,0.9,90,0.09,19,1.9,0.19,1.9E-2,null,null,null,null,null,null,null,null,null,null,null,null,null,null,null,null,null,null,9,0.9,90,0.09,19,1.9,0.19,1.9E-2]
[null,null,null,null,20,2,0.2,0.02,null,null,null,null,null,null,null,null,null,null,null,null,null,null,null,null,null,null,null,null,null,null,20,2,0.2,0.02]
[null,null,null,null,21,2.1,0.21,2.1000000000000001E-2,null,null,null,null,null,null,null,null,null,null,null,null,null,null,null,null,null,null,null,null,null,null,21,2.1,0.21,2.1000000000000001E-2]
[null,null,null,null,22,2.2000000000000002,0.22,2.1999999999999999E-2,null,null,null,null,null,null,null,null,null,null,null,null,null,null,null,null,null,null,null,null,null,null,22,2.2000000000000002,0.22,2.1999999999999999E-2]
[null,null,null,null,23,2.2999999999999998,0.23,2.3E-2,null,null,null,null,null,null,null,null,null,null,null,null,null,null,null,null,null,null,null,null,null,null,23,2.2999999999999998,0.23,2.3E-2]
[null,null,null,null,24,2.4,0.24,2.4E-2,null,null,null,null,null,null,null,null,null,null,null,null,null,null,null,null,null,null,null,null,null,null,24,2.4,0.24,2.4E-2]
[null,null,null,null,25,2.5,0.25,2.5000000000000001E-2,null,null,null,null,null,null,null,null,null,null,null,null,null,null,null,null,null,null,null,null,null,null,25,2.5,0.25,2.5000000000000001E-2]
[null,null,null,null,26,2.6,0.26,2.5999999999999999E-2,null,null,null,null,null,null,null,null,null,null,null,null,null,null,null,null,null,null,null,null,null,null,26,2.6,0.26,2.5999999999999999E-2]
[null,null,null,null,27,2.7,0.27,2.7E-2,null,null,null,null,null,null,null,null,null,null,null,null,null,null,null,null,null,null,null,null,null,null,27,2.7,0.27,2.7E-2]
[null,null,null,null,28,2.8,0.28000000000000003,2.8000000000000001E-2,null,null,null,null,null,null,null,null,null,null,null,null,null,null,null,null,null,null,null,null,null,null,28,2.8,0.28000000000000003,2.8000000000000001E-2]
[null,null,null,null,29,2.9,0.28999999999999998,2.9000000000000001E-2,null,null,null,null,null,null,null,null,null,null,null,null,null,null,null,null,null,null,null,null,null,null,29,2.9,0.28999999999999998,2.9000000000000001E-2]
[null,null,null,null,30,3,0.3,0.03,null,null,null,null,null,null,null,null,null,null,null,null,null,null,null,null,null,null,null,null,null,null,30,3,0.3,0.03]
[null,null,null,null,31,3.1,0.31,3.1E-2,null,null,null,null,null,null,null,null,null,null,null,null,null,null,null,null,null,null,null,null,null,null,31,3.1,0.31,3.1E-2]
[null,null,null,null,32,3.2,0.32,3.2000000000000001E-2,null,null,null,null,null,null,null,null,null,null,null,null,null,null,null,null,null,null,null,null,null,null,32,3.2,0.32,3.2000000000000001E-2]
[null,null,null,null,33,3.3,0.33,3.3000000000000002E-2,null,null,null,null,null,null,null,null,null,null,null,null,null,null,null,null,null,null,null,null,null,null,33,3.3,0.33,3.3000000000000002E-2]
[null,null,null,null,34,3.4,0.34,3.4000000000000002E-2,null,null,null,null,null,null,null,null,null,null,null,null,null,null,null,null,null,null,null,null,null,null,34,3.4,0.34,3.4000000000000002E-2]
[null,null,null,null,35,3.5,0.35,3.5000000000000003E-2,null,null,null,null,null,null,null,null,null,null,null,null,null,null,null,null,null,null,null,null,null,null,35,3.5,0.35,3.5000000000000003E-2]
[null,null,null,null,36,3.6,0.36,3.5999999999999997E-2,null,null,null,null,null,null,null,null,null,null,null,null,null,null,null,null,null,null,null,null,null,null,36,3.6,0.36,3.5999999999999997E-2]
[null,null,null,null,37,3.7,0.37,3.6999999999999998E-2,null,null,null,null,null,null,null,null,null,null,null,null,null,null,null,null,null,null,null,null,null,null,37,3.7,0.37,3.6999999999999998E-2]
[null,null,null,null,38,3.8,0.38,3.7999999999999999E-2,null,null,null,null,null,null,null,null,null,null,null,null,null,null,null,null,null,null,null,null,null,null,38,3.8,0.38,3.7999999999999999E-2]
[null,null,null,null,39,3.9,0.39,3.9E-2,null,null,null,null,null,null,null,null,null,null,null,null,null,null,null,null,null,null,null,null,null,null,39,3.9,0.39,3.9E-2]
[null,null,null,null,40,4,0.4,0.04,null,null,null,null,null,null,null,null,null,null,null,null,null,null,null,null,null,null,null,null,null,null,40,4,0.4,0.04]
[null,null,null,null,41,4.0999999999999996,0.41,4.1000000000000002E-2,null,null,null,null,null,null,null,null,null,null,null,null,null,null,null,null,null,null,null,null,null,null,41,4.0999999999999996,0.41,4.1000000000000002E-2]
[null,null,null,null,42,4.2,0.42,4.2000000000000003E-2,null,null,null,null,null,null,null,null,null,null,null,null,null,null,null,null,null,null,null,null,null,null,42,4.2,0.42,4.2000000000000003E-2]
[null,null,null,null,43,4.3,0.43,4.2999999999999997E-2,null,null,null,null,null,null,null,null,null,null,null,null,null,null,null,null,null,null,null,null,null,null,43,4.3,0.43,4.2999999999999997E-2]
[null,null,null,null,44,4.4000000000000004,0.44,4.3999999999999997E-2,null,null,null,null,null,null,null,null,null,null,null,null,null,null,null,null,null,null,null,null,null,null,44,4.4000000000000004,0.44,4.3999999999999997E-2]
[null,null,null,null,45,4.5,0.45,4.4999999999999998E-2,null,null,null,null,null,null,null,null,null,null,null,null,null,null,null,null,null,null,null,null,null,null,45,4.5,0.45,4.4999999999999998E-2]
[null,null,null,null,46,4.5999999999999996,0.46,4.5999999999999999E-2,null,null,null,null,null,null,null,null,null,null,null,null,null,null,null,null,null,null,null,null,null,null,46,4.5999999999999996,0.46,4.5999999999999999E-2]
[null,null,null,null,47,4.7,0.47,4.7E-2,null,null,null,null,null,null,null,null,null,null,null,null,null,null,null,null,null,null,null,null,null,null,47,4.7,0.47,4.7E-2]
[null,null,null,null,48,4.8,0.48,4.8000000000000001E-2,null,null,null,null,null,null,null,null,null,null,null,null,null,null,null,null,null,null,null,null,null,null,48,4.8,0.48,4.8000000000000001E-2]
[null,null,null,null,49,4.9000000000000004,0.49,4.9000000000000002E-2,null,null,null,null,null,null,null,null,null,null,null,null,null,null,null,null,null,null,null,null,null,null,49,4.9000000000000004,0.49,4.9000000000000002E-2]
[null,null,null,null,50,5,0.5,0.05,null,null,null,null,null,null,null,null,null,null,null,null,null,null,null,null,null,null,null,null,null,null,50,5,0.5,0.05]
[null,null,null,null,51,5.0999999999999996,0.51,5.0999999999999997E-2,null,null,null,null,null,null,null,null,null,null,null,null,null,null,null,null,null,null,null,null,null,null,51,5.0999999999999996,0.51,5.0999999999999997E-2]
[null,null,null,null,52,5.2,0.52,5.1999999999999998E-2,null,null,null,null,null,null,null,null,null,null,null,null,null,null,null,null,null,null,null,null,null,null,52,5.2,0.52,5.1999999999999998E-2]
[null,null,null,null,53,5.3,0.53,5.2999999999999999E-2,null,null,null,null,null,null,null,null,null,null,null,null,null,null,null,null,null,null,null,null,null,null,53,5.3,0.53,5.2999999999999999E-2]
[null,null,null,null,54,5.4,0.54,5.3999999999999999E-2,null,null,null,null,null,null,null,null,null,null,null,null,null,null,null,null,null,null,null,null,null,null,54,5.4,0.54,5.3999999999999999E-2]
[null,null,null,null,55,5.5,0.55000000000000004,5.5E-2,null,null,null,null,null,null,null,null,null,null,null,null,null,null,null,null,null,null,null,null,null,null,55,5.5,0.55000000000000004,5.5E-2]
[null,null,null,null,56,5.6,0.56000000000000005,5.6000000000000001E-2,null,null,null,null,null,null,null,null,null,null,null,null,null,null,null,null,null,null,null,null,null,null,56,5.6,0.56000000000000005,5.6000000000000001E-2]
[null,null,null,null,57,5.7,0.56999999999999995,5.7000000000000002E-2,null,null,null,null,null,null,null,null,null,null,null,null,null,null,null,null,null,null,null,null,null,null,57,5.7,0.56999999999999995,5.7000000000000002E-2]
[null,null,null,null,58,5.8,0.57999999999999996,5.8000000000000003E-2,null,null,null,null,null,null,null,null,null,null,null,null,null,null,null,null,null,null,null,null,null,null,58,5.8,0.57999999999999996,5.8000000000000003E-2]
[null,null,null,null,59,5.9,0.59,5.8999999999999997E-2,null,null,null,null,null,null,null,null,null,null,null,null,null,null,null,null,null,null,null,null,null,null,59,5.9,0.59,5.8999999999999997E-2]
[null,null,null,null,60,6,0.6,0.06,null,null,null,null,null,null,null,null,null,null,null,null,null,null,null,null,null,null,null,null,null,null,60,6,0.6,0.06]
[null,null,null,null,61,6.1,0.61,6.0999999999999999E-2,null,null,null,null,null,null,null,null,null,null,null,null,null,null,null,null,null,null,null,null,null,null,61,6.1,0.61,6.0999999999999999E-2]
[null,null,null,null,62,6.2,0.62,6.2E-2,null,null,null,null,null,null,null,null,null,null,null,null,null,null,null,null,null,null,null,null,null,null,62,6.2,0.62,6.2E-2]
[null,null,null,null,63,6.3,0.63,6.3E-2,null,null,null,null,null,null,null,null,null,null,null,null,null,null,null,null,null,null,null,null,null,null,63,6.3,0.63,6.3E-2]
[null,null,null,null,64,6.4,0.64,6.4000000000000001E-2,null,null,null,null,null,null,null,null,null,null,null,null,null,null,null,null,null,null,null,null,null,null,64,6.4,0.64,6.4000000000000001E-2]
[null,null,null,null,65,6.5,0.65,6.5000000000000002E-2,null,null,null,null,null,null,null,null,null,null,null,null,null,null,null,null,null,null,null,null,null,null,65,6.5000000000000098,0.65,6.5000000000000002E-2]
[null,null,null,null,66,6.6,0.66,6.6000000000000003E-2,null,null,null,null,null,null,null,null,null,null,null,null,null,null,null,null,null,null,null,null,null,null,66,6.6,0.66,6.6000000000000003E-2]
[null,null,null,null,67,6.7,0.67,6.7000000000000004E-2,null,null,null,null,null,null,null,null,null,null,null,null,null,null,null,null,null,null,null,null,null,null,67,6.7,0.67,6.7000000000000004E-2]
[null,null,null,null,68,6.8,0.68,6.8000000000000005E-2,null,null,null,null,null,null,null,null,null,null,null,null,null,null,null,null,null,null,null,null,null,null,68,6.8000000000000096,0.68,6.8000000000000005E-2]
[null,null,null,null,69,6.9,0.69,6.9000000000000006E-2,null,null,null,null,null,null,null,null,null,null,null,null,null,null,null,null,null,null,null,null,null,null,69,6.9000000000000101,0.69,6.8999999999999895E-2]
[null,null,null,null,70,7,0.7,7.0000000000000007E-2,null,null,null,null,null,null,null,null,null,null,null,null,null,null,null,null,null,null,null,null,null,null,70,7.0000000000000098,0.7,6.9999999999999896E-2]
[null,null,null,null,71,7.1,0.71,7.0999999999999994E-2,null,null,null,null,null,null,null,null,null,null,null,null,null,null,null,null,null,null,null,null,null,null,71,7.1,0.71,7.0999999999999994E-2]
[null,null,null,null,72,7.2,0.72,7.1999999999999995E-2,null,null,null,null,null,null,null,null,null,null,null,null,null,null,null,null,null,null,null,null,null,null,72,7.2000000000000099,0.72,7.1999999999999897E-2]
[null,null,null,null,73,7.3,0.73,7.2999999999999995E-2,null,null,null,null,null,null,null,null,null,null,null,null,null,null,null,null,null,null,null,null,null,null,73,7.3000000000000096,0.73,7.2999999999999898E-2]
[null,null,null,null,74,7.4,0.74,7.3999999999999996E-2,null,null,null,null,null,null,null,null,null,null,null,null,null,null,null,null,null,null,null,null,null,null,74,7.4000000000000101,0.74,7.3999999999999899E-2]
[null,null,null,null,75,{"$f":"ROUND(AF72,1)","v":7.5},{"$f":"ROUND(AG72,2)","v":0.75},{"$f":"ROUND(AH72,3)","v":7.4999999999999997E-2},null,null,null,null,null,null,null,null,null,null,null,null,null,null,null,null,null,null,null,null,null,null,75,7.5000000000000098,0.75,7.49999999999999E-2]
[null,null,null,null,76,7.6,0.76,7.5999999999999998E-2,null,null,null,null,null,null,null,null,null,null,null,null,null,null,null,null,null,null,null,null,null,null,76,7.6000000000000103,0.76,7.5999999999999901E-2]
[null,null,null,null,77,7.7,0.77,7.6999999999999999E-2,null,null,null,null,null,null,null,null,null,null,null,null,null,null,null,null,null,null,null,null,null,null,77,7.7000000000000099,0.77,7.6999999999999902E-2]
[null,null,null,null,78,7.8,0.78,7.8E-2,null,null,null,null,null,null,null,null,null,null,null,null,null,null,null,null,null,null,null,null,null,null,78,7.8000000000000096,0.78,7.7999999999999903E-2]
[null,null,null,null,79,7.9,0.79,7.9000000000000001E-2,null,null,null,null,null,null,null,null,null,null,null,null,null,null,null,null,null,null,null,null,null,null,79,7.9000000000000101,0.79,7.8999999999999904E-2]
[null,null,null,null,80,8,0.8,0.08,null,null,null,null,null,null,null,null,null,null,null,null,null,null,null,null,null,null,null,null,null,null,80,8.0000000000000107,0.8,7.9999999999999905E-2]
[null,null,null,null,81,8.1,0.81,8.1000000000000003E-2,null,null,null,null,null,null,null,null,null,null,null,null,null,null,null,null,null,null,null,null,null,null,81,8.1000000000000103,0.81,8.0999999999999905E-2]
[null,null,null,null,82,8.1999999999999993,0.82,8.2000000000000003E-2,null,null,null,null,null,null,null,null,null,null,null,null,null,null,null,null,null,null,null,null,null,null,82,8.2000000000000099,0.82,8.1999999999999906E-2]
[null,null,null,null,83,8.3000000000000007,0.83,8.3000000000000004E-2,null,null,null,null,null,null,null,null,null,null,null,null,null,null,null,null,null,null,null,null,null,null,83,8.3000000000000096,0.83,8.2999999999999893E-2]
[null,null,null,null,84,8.4,0.84,8.4000000000000005E-2,null,null,null,null,null,null,null,null,null,null,null,null,null,null,null,null,null,null,null,null,null,null,84,8.4000000000000092,0.84,8.3999999999999894E-2]
[null,null,null,null,85,8.5,0.85,8.5000000000000006E-2,null,null,null,null,null,null,null,null,null,null,null,null,null,null,null,null,null,null,null,null,null,null,85,8.5000000000000107,0.85,8.4999999999999895E-2]
[null,null,null,null,86,8.6,0.86,8.5999999999999993E-2,null,null,null,null,null,null,null,null,null,null,null,null,null,null,null,null,null,null,null,null,null,null,86,8.6000000000000103,0.86,8.5999999999999896E-2]
[null,null,null,null,87,8.6999999999999993,0.87,8.6999999999999994E-2,null,null,null,null,null,null,null,null,null,null,null,null,null,null,null,null,null,null,null,null,null,null,87,8.7000000000000099,0.87,8.6999999999999897E-2]
[null,null,null,null,88,8.8000000000000007,0.88,8.7999999999999995E-2,null,null,null,null,null,null,null,null,null,null,null,null,null,null,null,null,null,null,null,null,null,null,88,8.8000000000000096,0.88,8.7999999999999898E-2]
[null,null,null,null,89,8.9,0.89,8.8999999999999996E-2,null,null,null,null,null,null,null,null,null,null,null,null,null,null,null,null,null,null,null,null,null,null,89,8.9000000000000092,0.89,8.8999999999999899E-2]
[null,null,null,null,90,9,0.9,0.09,null,null,null,null,null,null,null,null,null,null,null,null,null,null,null,null,null,null,null,null,null,null,90,9.0000000000000107,0.9,8.99999999999999E-2]
[null,null,null,null,91,9.1,0.91,9.0999999999999998E-2,null,null,null,null,null,null,null,null,null,null,null,null,null,null,null,null,null,null,null,null,null,null,91,9.1000000000000103,0.91,9.09999999999999E-2]
[null,null,null,null,92,9.1999999999999993,0.92,9.1999999999999998E-2,null,null,null,null,null,null,null,null,null,null,null,null,null,null,null,null,null,null,null,null,null,null,92,9.2000000000000099,0.92,9.1999999999999901E-2]
[null,null,null,null,93,9.3000000000000007,0.93,9.2999999999999999E-2,null,null,null,null,null,null,null,null,null,null,null,null,null,null,null,null,null,null,null,null,null,null,93,9.3000000000000096,0.93,9.2999999999999902E-2]
[null,null,null,null,94,9.4,0.94,9.4E-2,null,null,null,null,null,null,null,null,null,null,null,null,null,null,null,null,null,null,null,null,null,null,94,9.4000000000000092,0.94,9.3999999999999903E-2]
[null,null,null,null,95,9.5,0.95,9.5000000000000001E-2,null,null,null,null,null,null,null,null,null,null,null,null,null,null,null,null,null,null,null,null,null,null,95,9.5000000000000107,0.95,9.4999999999999904E-2]
[null,null,null,null,96,9.6,0.96,9.6000000000000002E-2,null,null,null,null,null,null,null,null,null,null,null,null,null,null,null,null,null,null,null,null,null,null,96,9.6000000000000103,0.96,9.5999999999999905E-2]
[null,null,null,null,97,9.6999999999999993,0.97,9.7000000000000003E-2,null,null,null,null,null,null,null,null,null,null,null,null,null,null,null,null,null,null,null,null,null,null,97,9.7000000000000099,0.97,9.6999999999999906E-2]
[null,null,null,null,98,9.8000000000000007,0.98,9.8000000000000004E-2,null,null,null,null,null,null,null,null,null,null,null,null,null,null,null,null,null,null,null,null,null,null,98,9.8000000000000096,0.98,9.7999999999999907E-2]
[null,null,null,null,99,9.9,0.99,9.9000000000000005E-2,null,null,null,null,null,null,null,null,null,null,null,null,null,null,null,null,null,null,null,null,null,null,99,9.9000000000000092,0.99,9.8999999999999894E-2]

{"sheet":"Отчеты","index":4,"n_rows":7,"n_cols":25,"rows_kept":7,"cut":false,"hidden":false,"merged":[]}
["Отчет о проделанной работе",null,null,null,null,null,null,null,null,null,null,null,null,null,null,null,null,null,null,null,null,null,null,"Номер записи"]
["Всего попыток",null,null,null,null,null,null,null,null,null,null,null,null,null,null,null,null,null,null,null,null,null,null,"Дата",{"$f":"Результаты!B6","v":"00:00:00"}]
[{"$f":"Результаты!A3","v":0},null,null,null,null,null,null,null,null,null,null,null,null,null,null,null,null,null,null,null,null,null,null,"Уровень",{"$f":"Результаты!G6","v":0}]
[null,null,null,"Из них на столько баллов:"]
["Дата","Уровень","Всего попыток",5,2,0,"Всего баллов","Максимально баллов","Средний балл","Оценка"]
[]
[null,null,null,null,null,null,null,null,null,null,null,null,null,null,null,null,null,null,null,null,null,null,null,"Количество записей",{"$f":"SUBTOTAL(3,Результаты!B4:B6)","v":0}]

{"sheet":"Результаты","index":5,"n_rows":3,"n_cols":21,"rows_kept":3,"cut":false,"hidden":false,"merged":[]}
[null,"Результаты"]
["Номер","Дата","Время",null,null,"Сезон","Уровень","Задание"]
[0,"Дата","Время начала решения","Время окончания решения","Продолжительность решения","Группа","Уровень","1-й сомножитель","Знак действия","2-й сомножитель","Знак равенства","Правильный ответ","Ваш ответ","Баллы","Результат","Всего примеров","Правильно решено","Неправильно решено","Пропущено","Решение пропущено?","Комментарий"]